Cogmind - Beta 12 @@@ ROGUE MODE // 2023.03.21 @ 23:36:48 Player: Exp. Geonium Core Result: Self-destructed Performance ------------- Evolutions (3) 1500 Regions Visited (9) 1800 Robots Destroyed (76) 380 Value Destroyed (2195) 2195 Prototype IDs (25) 500 Alien Tech Used (0) 0 Bonus (300) 300 TOTAL SCORE: 6675 Bonus ------- Aligned with FarCom 300 Cogmind --------- Core Integrity 116/700 Matter 37/300 Energy 100/100 System Corruption 2% Temperature Cool (0) Movement Walking (280) Ox2 Location -7/Zion Parts ------- > --- POWER (1) -------- (None) > --- PROPULSION (5) --- Makeshift Leg > --- UTILITY (4) ------ High-capacity Storage Unit Makeshift Salvage Targeting Computer > --- WEAPON (3) ------- Makeshift Spear > --- INVENTORY (20) --- Makeshift Power Source Neutrino Core Improved Titanium Leg Long-range Tractor Beam Faulty Enhanced Autogun Enhanced Autogun KE Penetrator Advanced Assault Cannon Advanced Assault Cannon Advanced Assault Cannon Advanced Assault Cannon Advanced Assault Cannon Grenade Launcher Mini Grenade Launcher Flail Katana Makeshift Spear Peak State ------------ > --- POWER ------------ Neutrino Core > --- PROPULSION ------- Light Treads Light Treads Improved Treads Improved Treads Advanced Treads > --- UTILITY ---------- High-capacity Storage Unit Makeshift Salvage Targeting Computer Improved Melee Analysis Suite Hacking Suite > --- WEAPON ----------- Advanced Assault Cannon Ripper Phasing Sabre > --- INVENTORY -------- Light Nuclear Core Light Fission Core Light Treads Light Treads Advanced Treads Long-range Tractor Beam Enhanced Autogun Enhanced Autogun Advanced Assault Cannon Advanced Assault Cannon Advanced Assault Cannon Advanced Assault Cannon Advanced Assault Cannon Advanced Assault Cannon Advanced Assault Cannon Proton Missile Launcher Grenade Launcher Mini Grenade Launcher Flail Katana [Rating: 47] Favorites ----------- Power Light Ion Engine Engine Light Ion Engine Power Core Light Nuclear Core Propulsion Light Treads Treads Light Treads Leg Aluminum Leg Utility High-capacity Storage Unit Device Seismic Detector Storage High-capacity Storage Unit Processor Makeshift Salvage Targeting Computer Hackware Hacking Suite Protection Light Armor Plating Weapon Light Assault Rifle Energy Gun AWS/Thermal Ballistic Gun Light Assault Rifle Ballistic Cannon Advanced Assault Cannon Launcher Proton Missile Launcher Slashing Weapon Ripper Piercing Weapon Makeshift Spear Build | -11 -10 -10 -10 -9 -8 -7 -7 -7 -7 ------- Run | Jun Mat Min Exi Min Mat Fac Low Low Zio Slots Evolved 6 | . . . . . 4 2 . . . Power . | . . . . . . . . . . Propulsion 3 | . . . . . 3 . . . . Utility 2 | . . . . . . 2 . . . Weapon 1 | . . . . . 1 . . . . Parts Attached 58 | . 2 . 3 . 19 3 8 2 21 Power 6 | . . . 1 . 1 . 2 . 2 Engine 2 | . . . 1 . . . . . 1 Core 4 | . . . . . 1 . 2 . 1 Reactor . | . . . . . . . . . . Propulsion 26 | . . . 2 . 7 1 3 1 12 Treads 17 | . . . 2 . 4 1 3 1 6 Leg 9 | . . . . . 3 . . . 6 Wheel . | . . . . . . . . . . Hover . | . . . . . . . . . . Flight . | . . . . . . . . . . Utility 8 | . 1 . . . 3 2 . 1 1 Device 3 | . 1 . . . 2 . . . . Storage 1 | . . . . . 1 . . . . Processor 2 | . . . . . . . . 1 1 Hackware 1 | . . . . . . 1 . . . Protection 1 | . . . . . . 1 . . . Artifact . | . . . . . . . . . . Weapon 18 | . 1 . . . 8 . 3 . 6 Energy Gun 1 | . . . . . 1 . . . . Energy Cannon . | . . . . . . . . . . Ballistic Gun 8 | . 1 . . . 5 . 2 . . Ballistic Cannon 3 | . . . . . . . . . 3 Launcher 3 | . . . . . 2 . . . 1 Special Weapon . | . . . . . . . . . . Impact Weapon . | . . . . . . . . . . Slashing Weapon 2 | . . . . . . . 1 . 1 Piercing Weapon 1 | . . . . . . . . . 1 Special Melee Weapon . | . . . . . . . . . . Unidentified Prototypes 1 | . . . . . 1 . . . . Parts Lost 40 | . . . . . 7 1 4 1 27 Power 5 | . . . . . 1 . 1 . 3 Propulsion 19 | . . . . . 2 . 2 1 14 Utility 6 | . . . . . 2 1 . . 3 Weapon 10 | . . . . . 2 . 1 . 7 Highest Loss Streak 11 | . . . . . 5 1 2 1 11 To Critical Strikes 1 | . . . . . . . 1 . . Average Slot Usage (%) 84 | . 90 100 99 100 77 78 82 98 73 Engine 4 | . 14 14 14 14 2 . . . 1 Core 3 | . . . . . 4 7 7 7 3 Treads 24 | . . . 26 28 23 36 37 37 14 Leg 7 | . 28 28 1 . 11 1 . . 10 Device 4 | . 4 14 14 14 7 3 . . . Storage 9 | . 14 14 14 14 9 7 7 7 7 Processor 2 | . . . . . . . . 5 8 Hackware 3 | . . . . . . 2 7 7 4 Protection 2 | . . . . . . 3 7 7 . Energy Gun 2 | . . . . . 3 7 5 . . Ballistic Gun 13 | . 28 28 28 28 16 7 6 15 1 Ballistic Cannon 2 | . . . . . . . . . 8 Slashing Weapon 2 | . . . . . . . . 7 6 Naked Turns . | . . . . . . . . . . Heaviest Build 67 | 10 11 11 11 11 58 60 66 66 67 Greatest Support 108 | 20 20 20 40 40 80 100 103 106 108 Greatest Overweight (x) 2 | . . . . . 1 . . . 2 Average Overweight (x) . | . . . . . . . . . . Largest Inventory Capacity 20 | . 8 8 8 8 20 20 20 20 20 Average Capacity 15 | . 8 8 8 8 11 20 20 20 20 Most Carried 20 | . 7 8 8 8 18 20 20 20 20 Average Carried 13 | . 6 7 7 8 9 18 18 19 16 Final Capacity 20 | 8 8 8 8 8 20 20 20 20 20 Final Carried 20 | 6 7 7 8 8 18 20 19 19 17 Class Distribution -------------------- 41% | Mutant 23% | Scavenger-Mutant 16% | Scavenger-Skirmisher 7% | Derelict-Mutant 7% | Scavenger-Tank Dominant Class ---------------- Mutant | -10/Materials Mutant | -10/Mines Mutant | -10/Exiles Mutant | -9/Mines Scavenger-Skirmisher | -8/Materials Scavenger-Skirmisher | -7/Factory Scavenger-Mutant | -7/Lower Caves Scavenger-Mutant | -7/Lower Caves Mutant | -7/Zion Resources | -11 -10 -10 -10 -9 -8 -7 -7 -7 -7 ----------- Run | Jun Mat Min Exi Min Mat Fac Low Low Zio Matter Collected 1532 | 200 . 42 . 25 495 43 140 47 540 Remotely . | . . . . . . . . . . Salvage Created 2644 | . . 51 . . 1141 232 703 75 442 Parts 164 | . . 10 . . 64 9 36 5 40 Haulers Intercepted 3 | . . . . . 2 1 . . . Recyclers Shooed 9 | . . . . . 8 1 . . . Parts Field Recycled . | . . . . . . . . . . Retrieved Matter . | . . . . . . . . . . Parts Self-Destructed 37 | . . . . . . . 32 5 . Prevented . | . . . . . . . . . . Kills | -11 -10 -10 -10 -9 -8 -7 -7 -7 -7 ------- Run | Jun Mat Min Exi Min Mat Fac Low Low Zio Combat Hostiles Destroyed 42 | . . 3 . . 15 2 16 1 5 Guns 35 | . . 3 . . 13 2 16 1 . Cannons 4 | . . . . . . . . . 4 AOE 3 | . . . . . 2 . . . 1 Classes Destroyed 16 | . . 1 . . 9 1 . . 5 Worker 2 | . . . . . 1 1 . . . Builder 3 | . . . . . 3 . . . . Tunneler 1 | . . . . . . 1 . . . Hauler 3 | . . . . . 2 1 . . . Recycler 3 | . . . . . 3 . . . . Watcher 5 | . . . . . 4 1 . . . Swarmer 9 | . . 3 . . . . 6 . . Grunt 14 | . . . . . 8 . 6 . . Brawler 1 | . . . . . 1 . . . . Sentry 8 | . . . . . 3 2 2 1 . Hunter 5 | . . . . . 3 . 2 . . Zionite 16 | . . . . . . . . . 16 Tinkerer 2 | . . . . . . . . . 2 Surgeon 1 | . . . . . . . . . 1 Thug 1 | . . . . . . . . . 1 Butcher 2 | . . . . . . . . . 2 Marauder 1 | . . . . . . . . . 1 Best Kill Streak 14 | . . 1 . . 10 2 14 1 5 Combat Bots Only 14 | . . 1 . . 4 2 14 1 1 Max Kills in Single Turn 3 | . . 1 . . 2 1 1 1 3 Gunslinging . | . . . . . . . . . . Exploded 2 | . . . . . 2 . . . 1 Melee . | . . . . . . . . . . Uniques/NPCs Destroyed 1 | . . . . . . . . . 1 Imprinter (-7/Zion) Combat | -11 -10 -10 -10 -9 -8 -7 -7 -7 -7 -------- Run | Jun Mat Min Exi Min Mat Fac Low Low Zio Damage Taken 5269 | . . 160 . . 1208 133 792 63 2913 Core 754 | . . 18 . . 152 21 152 11 400 Absorbed by Shields . | . . . . . . . . . . Core Remaining (%) 88 | 100 . . . 92 72 . . . . Volleys Fired 189 | . . 16 . . 50 3 7 4 109 Largest 3 | . . 2 . . 3 1 2 2 2 Hottest 96 | . . 40 . . 73 28 50 50 96 Shots Fired 420 | . . 32 . . 162 18 73 8 127 Gun 303 | . . 32 . . 157 18 73 8 15 Cannon 108 | . . . . . . . . . 108 Launcher 9 | . . . . . 5 . . . 4 Special . | . . . . . . . . . . Kinetic 287 | . . 32 . . 107 3 14 8 123 Thermal 124 | . . . . . 50 15 59 . . Explosive 5 | . . . . . 5 . . . . Electromagnetic 4 | . . . . . . . . . 4 Robot Hit Streak 27 | . . 2 . . 11 14 22 4 27 Robot Miss Streak 6 | . . 6 . . 3 1 2 3 4 Penetration Max 1 | . . . . . 1 . . . . Secondary Targets 1 | . . . . . 1 . . . . Max Gunslinging Chain 1 | . . . . . 1 . . . . Autonomous 125 | . . . . . 50 15 60 . . Shots Hit Robots 290 | . . 10 . . 106 16 64 5 89 Core Hits 131 | . . 5 . . 55 6 27 3 35 Critical Kills 1 | . . . . . 1 . . . . Critical Parts Destroyed . | . . . . . . . . . . Critical Strikes 5 | . . . . . 1 . . . 4 Destroy 1 | . . . . . 1 . . . . Blast 3 | . . . . . . . . . 3 Sever 1 | . . . . . . . . . 1 Melee Attacks 12 | . . . . . . . 1 . 11 Impact . | . . . . . . . . . . Slashing 6 | . . . . . . . 1 . 5 Piercing 6 | . . . . . . . . . 6 Sneak Attacks 1 | . . . . . . . . . 1 Combat Hostiles . | . . . . . . . . . . Follow-up Attacks . | . . . . . . . . . . Damage Inflicted 7179 | . . 92 . 14 2464 496 1486 87 2540 Guns 4329 | . . 92 . . 2127 449 1486 87 88 Cannons 1996 | . . . . . . . . . 1996 Explosions 457 | . . . . . 334 . . . 123 Melee 333 | . . . . . . . . . 333 Ramming 64 | . . . . 14 3 47 . . . Kinetic 3451 | . . 92 . . 950 55 183 87 2084 Thermal 2874 | . . . . . 1177 394 1303 . . Explosive 334 | . . . . . 334 . . . . Electromagnetic 123 | . . . . . . . . . 123 Impact . | . . . . . . . . . . Slashing 156 | . . . . . . . . . 156 Piercing 177 | . . . . . . . . . 177 Highest Corruption 2 | . . . . . . 2 2 2 2 Average Corruption 2 | . . . . . . 2 2 2 2 Corruption Purged . | . . . . . . . . . . Corruption Blocked . | . . . . . . . . . . Effects 24 | . . . . . . 5 4 3 12 Message Errors 7 | . . . . . . . 3 1 3 Heat Flow Errors 4 | . . . . . . 3 . . 1 Energy Discharges 4 | . . . . . . . 1 1 2 Parts Fused 1 | . . . . . . . . . 1 Data Loss (minor) 4 | . . . . . . 2 . 1 1 Misfires 3 | . . . . . . . . . 3 Alerts 1 | . . . . . . . . . 1 Overload Shots . | . . . . . . . . . . Overflow Damage 41 | . . . . . 5 . . . 36 Projectiles 36 | . . . . . . . . . 36 Explosions 5 | . . . . . 5 . . . . Melee . | . . . . . . . . . . Knockbacks 7 | . . . . . . 1 . . 6 Impact 1 | . . . . . . 1 . . . Kinetic 6 | . . . . . . . . . 6 Secondary . | . . . . . . . . . . Self-Inflicted Damage 120 | . . . . . 22 . . . 98 Shots 6 | . . . . . 2 . . . 4 Rammed 5 | . . . . 2 3 . . . . Targets Rammed 7 | . . . . 2 3 2 . . . Kicked . | . . . . . . . . . . Crushed 2 | . . . . . . 2 . . . Highest Temperature 249 | . . . . . 22 249 28 16 198 Average Temperature 31 | . . . . . 7 88 19 9 32 Received Heat Transfer 822 | . . . . . 288 48 216 . 270 Siege Activations . | . . . . . . . . . . Robots Corrupted . | . . . . . . . . . . Combat Hostiles . | . . . . . . . . . . Parts Fried . | . . . . . . . . . . Impact Corruptions . | . . . . . . . . . . Robots Melted . | . . . . . . . . . . Combat Hostiles . | . . . . . . . . . . Parts Melted 11 | . . . . . 2 1 5 . 3 Heat Transferred 3663 | . . . . . 1517 481 1665 . . Parts Sabotaged . | . . . . . . . . . . Parts Stolen . | . . . . . . . . . . Parts Stripped . | . . . . . . . . . . Power Chain Reactions 2 | . . . . . . . . . 2 Missiles Intercepted . | . . . . . . . . . . Alert | -11 -10 -10 -10 -9 -8 -7 -7 -7 -7 ------- Run | Jun Mat Min Exi Min Mat Fac Low Low Zio Peak Influence 387 | . . 100 . . 387 231 . . . Initial 146 | . . . . . . 146 . . . Average 117 | . . 60 . . 169 182 . . . Maximum Alert Level 1 | . . . . . 1 1 . . . Low Security (%) 73 | . 100 100 . 100 58 54 . . . Level 1 26 | . . . . . 41 45 . . . Level 2 . | . . . . . . . . . . Level 3 . | . . . . . . . . . . Level 4 . | . . . . . . . . . . Level 5 . | . . . . . . . . . . High Security . | . . . . . . . . . . Max Security . | . . . . . . . . . . Squads Dispatched 6 | . . . . . 5 1 . . . Investigation 1 | . . . . . . 1 . . . Extermination . | . . . . . . . . . . Reinforcement 2 | . . . . . 2 . . . . Assault . | . . . . . . . . . . Garrison 3 | . . . . . 3 . . . . Intercept . | . . . . . . . . . . Searches Triggered . | . . . . . . . . . . Construction Impeded 2 | . . . . . 2 . . . . Haulers Reinforced . | . . . . . . . . . . Active Scanning Responses . | . . . . . . . . . . Cargo Convoy Interrupts . | . . . . . . . . . . Stealth | -11 -10 -10 -10 -9 -8 -7 -7 -7 -7 --------- Run | Jun Mat Min Exi Min Mat Fac Low Low Zio Distress Signals 3 | . . . . . 3 . . . . Communications Jammed . | . . . . . . . . . . Distress Signals . | . . . . . . . . . . Times Spotted 86 | . 3 5 . . 26 3 16 1 32 Peak Tracking Total 9 | . 3 3 . . 5 2 9 1 4 Tactical Retreats 11 | . . 1 . . 1 . . . 9 Traps | -11 -10 -10 -10 -9 -8 -7 -7 -7 -7 ------- Run | Jun Mat Min Exi Min Mat Fac Low Low Zio Traps Triggered 2 | . 1 . . . . 1 . . . Indirectly . | . . . . . . . . . . Trap Hack Attempts . | . . . . . . . . . . Triggered . | . . . . . . . . . . Disarmed . | . . . . . . . . . . Reprogrammed . | . . . . . . . . . . Reused . | . . . . . . . . . . Traps Extracted . | . . . . . . . . . . Installed . | . . . . . . . . . . Triggered . | . . . . . . . . . . Exploded 1 | . . . . . . . . . 1 Machines | -11 -10 -10 -10 -9 -8 -7 -7 -7 -7 ---------- Run | Jun Mat Min Exi Min Mat Fac Low Low Zio Machines Disabled 3 | . . . . . . . 1 . 2 Max in Single Turn 1 | . . . . . . . 1 . 1 Machines Repaired . | . . . . . . . . . . Machines Sabotaged . | . . . . . . . . . . Overloaded Fab Kills . | . . . . . . . . . . Hacking | -11 -10 -10 -10 -9 -8 -7 -7 -7 -7 --------- Run | Jun Mat Min Exi Min Mat Fac Low Low Zio Machines Accessed 13 | . . . 2 . 3 6 2 . . Terminals 8 | . . . . . 2 5 1 . . Fabricators . | . . . . . . . . . . Repair Stations . | . . . . . . . . . . Recycling Units . | . . . . . . . . . . Scanalyzers 1 | . . . . . 1 . . . . Garrison Access 1 | . . . . . . 1 . . . Total Hacks 33 | . . . 2 . 12 12 7 . . Successful 17 | . . . 2 . 6 2 7 . . Failed 16 | . . . . . 6 10 . . . Catastrophic 5 | . . . . . 1 4 . . . Database Lockouts . | . . . . . . . . . . Manual 13 | . . . 1 . 6 6 . . . Terminals 23 | . . . . . 6 11 6 . . Fabricators . | . . . . . . . . . . Repair Stations . | . . . . . . . . . . Recycling Units . | . . . . . . . . . . Scanalyzers 6 | . . . . . 6 . . . . Garrison Access 1 | . . . . . . 1 . . . Terminal Hacks 12 | . . . 2 . 1 2 7 . . Record 7 | . . . 1 . . . 6 . . Open Door 1 | . . . . . . . 1 . . Branch Access Points 2 | . . . . . 1 1 . . . Terminal Index 1 | . . . . . . 1 . . . EX-Prototype ID Bank 1 | . . . 1 . . . . . . Fabricator Hacks . | . . . . . . . . . . Repair Station Hacks . | . . . . . . . . . . Recycling Unit Hacks . | . . . . . . . . . . Scanalyzer 3 | . . . . . 3 . . . . Insert Component 2 | . . . . . 2 . . . . Analyze 1 | . . . . . 1 . . . . Garrison Access Hacks . | . . . . . . . . . . Unauthorized Hacks 2 | . . . . . 2 . . . . Terminals 2 | . . . . . 2 . . . . Botnet 1 | . . . . . 1 . . . . Operators 1 | . . . . . 1 . . . . Fabricators . | . . . . . . . . . . Repair Stations . | . . . . . . . . . . Recycling Units . | . . . . . . . . . . Scanalyzers . | . . . . . . . . . . Garrison Access . | . . . . . . . . . . Data Cores Recovered . | . . . . . . . . . . Used . | . . . . . . . . . . Hacking Detections 10 | . . . . . 3 6 1 . . Full Trace Events 1 | . . . . . . 1 . . . Feedback Events . | . . . . . . . . . . Feedback Blocked . | . . . . . . . . . . Robot Schematics Acquired . | . . . . . . . . . . Robots Built . | . . . . . . . . . . Authchips . | . . . . . . . . . . Time . | . . . . . . . . . . Total Robot Build Rating . | . . . . . . . . . . Part Schematics Acquired 1 | . . . . . 1 . . . . Parts Built . | . . . . . . . . . . Authchips . | . . . . . . . . . . Time . | . . . . . . . . . . Total Part Build Rating . | . . . . . . . . . . Parts Repaired . | . . . . . . . . . . Time . | . . . . . . . . . . Parts Recycled . | . . . . . . . . . . Recycled Matter . | . . . . . . . . . . Retrieved Matter . | . . . . . . . . . . Retrieved Components . | . . . . . . . . . . Parts Scanalyzed 2 | . . . . . 2 . . . . Part Schematics Acquired 1 | . . . . . 1 . . . . Parts Damaged . | . . . . . . . . . . Bothacking | -11 -10 -10 -10 -9 -8 -7 -7 -7 -7 ------------ Run | Jun Mat Min Exi Min Mat Fac Low Low Zio Used RIF Installer . | . . . . . . . . . . Robots Hacked . | . . . . . . . . . . Non-combat . | . . . . . . . . . . Combat . | . . . . . . . . . . Robot Hacks Applied . | . . . . . . . . . . Relay Couplers Released . | . . . . . . . . . . Fabnet Peak Effective % . | . . . . . . . . . . Robots Rewired . | . . . . . . . . . . Allies Hacked . | . . . . . . . . . . Hacks Repelled . | . . . . . . . . . . Allies | -11 -10 -10 -10 -9 -8 -7 -7 -7 -7 -------- Run | Jun Mat Min Exi Min Mat Fac Low Low Zio Total Allies . | . . . . . . . . . . Largest Group . | . . . . . . . . . . Highest-Rated Group . | . . . . . . . . . . Highest-Rated Ally . | . . . . . . . . . . Total Orders . | . . . . . . . . . . Ally Attacks . | . . . . . . . . . . Total Damage . | . . . . . . . . . . Kills . | . . . . . . . . . . Allies Corrupted . | . . . . . . . . . . Allies Melted . | . . . . . . . . . . Intel | -11 -10 -10 -10 -9 -8 -7 -7 -7 -7 ------- Run | Jun Mat Min Exi Min Mat Fac Low Low Zio Robot Analysis Total . | . . . . . . . . . . Derelict Logs Recovered 7 | . . 2 . 1 . . 2 2 . Drone Launches . | . . . . . . . . . . Drone Recoveries . | . . . . . . . . . . Exploration | -11 -10 -10 -10 -9 -8 -7 -7 -7 -7 ------------- Run | Jun Mat Min Exi Min Mat Fac Low Low Zio Turns Passed 3939 | . 156 250 385 210 583 414 555 379 1007 Spaces Moved 2082 | 1 127 170 238 130 245 248 309 230 384 Core . | . . . . . . . . . . Treads 1622 | . . . 223 130 245 248 309 230 237 Legs 460 | 1 127 170 15 . . . . . 147 Wheels . | . . . . . . . . . . Hover . | . . . . . . . . . . Flight . | . . . . . . . . . . Fastest Speed 120 | 120 120 120 120 160 152 160 160 160 133 Average Speed 158 | 120 120 120 157 160 159 160 160 160 183 Slowest Speed 305 | 120 120 120 160 160 240 160 160 160 305 Overloaded Moves . | . . . . . . . . . . Propulsion Burnouts . | . . . . . . . . . . Robots Hopped . | . . . . . . . . . . Cave-ins Triggered . | . . . . . . . . . . Exploration Rate (%) 34 | 2 40 42 60 43 26 6 49 49 32 Regions Visited 9 Branch Regions 6 Pre-discovered Areas 3 | . . 1 1 . . . 1 . . Known Exits Taken 2 | . . . . . 1 1 . . . Unknown Exits Taken 7 | 1 1 1 1 1 . . 1 1 . Scrap Searched 7 | . . 1 . 1 . . 2 1 2 Spaces Dug 12 | . . . . . 11 . . . 1 Terrain Destroyed 36 | . . . . . 28 1 2 . 5 Melee . | . . . . . . . . . . Projectile 14 | . . . . . 7 1 2 . 4 AOE 22 | . . . . . 21 . . . 1 Terrain Rammed . | . . . . . . . . . . Walls Destroyed . | . . . . . . . . . . Machines Disabled . | . . . . . . . . . . Actions | -11 -10 -10 -10 -9 -8 -7 -7 -7 -7 --------- Run | Jun Mat Min Exi Min Mat Fac Low Low Zio Total 2458 | . 129 191 250 131 349 261 364 236 547 Wait 48 | . . 2 . . 16 . 17 . 13 Move 2074 | . 126 169 237 129 244 248 308 229 384 Hop . | . . . . . . . . . . Pick Up 42 | . 1 2 5 . 12 4 11 1 6 Fast Attach 31 | . 2 . . . 11 2 2 1 13 Attach 17 | . . . 2 . 3 1 4 1 6 Detach 3 | . . . . . 2 . 1 . . Swap 10 | . . . 1 . 5 . 2 . 2 Drop 26 | . . 2 5 . 3 2 11 . 3 Fire 189 | . . 16 . . 50 3 7 4 109 Melee 12 | . . . . . . . 1 . 11 Ram . | . . . . . . . . . . Kick . | . . . . . . . . . . Crush 6 | . . . . 2 3 1 . . . Escape Stasis . | . . . . . . . . . . Rewire . | . . . . . . . . . . Trap . | . . . . . . . . . . Miscellaneous . | . . . . . . . . . . Route ------- -11/Junkyard -10/Materials -10/Mines (discovered 2 exits: [*Mat] / *Exi) -10/Exiles -9/Mines -8/Materials (discovered 3 exits: *Fac x3) -7/Factory (discovered 2 exits: *Low x2) -7/Lower Caves -7/Lower Caves -7/Zion (discovered 1 exit: [*Pro]) History --------- Turn | Location | Event 1 | -11/Junkyard | Discovered new exit (range 0) 1 | -11/Junkyard | Entered Materials 141 | -10/Materials | Discovered new exit (range 14) 157 | -10/Materials | Entered Mines 216 | -10/Mines | Discovered new exit (range 10) 300 | -10/Mines | Build established: Mutant 307 | -10/Mines | Learned location of Zion (-7) 338 | -10/Mines | Found a damaged Exp. Sensor Array with a note attached 341 | -10/Mines | Found Prototype Device 377 | -10/Mines | Learned 4 Materials zone layouts 402 | -10/Mines | Deemed a non-threat by the Exiles lab entrance 402 | -10/Mines | Discovered new exit (range 5) 407 | -10/Mines | Entered Exiles 449 | -10/Exiles | Met 8R-AWN 477 | -10/Exiles | Met EX-HEX 520 | -10/Exiles | Met EX-BIN 541 | -10/Exiles | Aligned with FarCom system 542 | -10/Exiles | Given EX-Vault access code 581 | -10/Exiles | Opened EX-Vault 596 | -10/Exiles | Found AWS/Thermal 629 | -10/Exiles | Warned to stay clear of 0b10 Research branches 647 | -10/Exiles | Exiles lab attacked by MAIN.C 776 | -10/Exiles | Discovered new exit (range 10) 792 | -10/Exiles | Left Exiles lab with AWS/Thermal 792 | -10/Exiles | Entered Mines 868 | -9/Mines | Learned location of 1 exit from Materials 972 | -9/Mines | Discovered new exit (range 5) 1002 | -9/Mines | Entered Materials 1002 | -8/Materials | Evolved 4 slots: Propulsion x3, Weapon x1 1003 | -8/Materials | Identified exit to Factory 1109 | -8/Materials | Garrison activated, responded to threat 1188 | -8/Materials | Lost 5 parts (1p1n1u2w) 1393 | -8/Materials | Identified Exp. Sensor Array 1585 | -8/Materials | Entered Factory 1585 | -7/Factory | Evolved 2 slots: Utility x2 1639 | -7/Factory | Build established: Scavenger-Skirmisher 1842 | -7/Factory | Discovered new exit (range 16) 1916 | -7/Factory | Identified exit to Lower Caves 1999 | -7/Factory | Entered Lower Caves 2093 | -7/Lower Caves | Encountered a Warlord checkpoint 2139 | -7/Lower Caves | Learned location of Extension (-6) 2356 | -7/Lower Caves | Discovered new exit (range 7) 2412 | -7/Lower Caves | Attracted the attention of an 0b10 base 2463 | -7/Lower Caves | Learned Factory terminal intel 2465 | -7/Lower Caves | Destroyed 14 combat bots 2471 | -7/Lower Caves | Learned Research trap positions 2471 | -7/Lower Caves | Learned Extension trap positions 2471 | -7/Lower Caves | Learned Armory security intel 2471 | -7/Lower Caves | Learned Extension garrison access intel 2554 | -7/Lower Caves | Entered another Lower Caves area 2587 | -7/Lower Caves | Build established: Scavenger-Mutant 2592 | -7/Lower Caves | Encountered a Warlord checkpoint 2816 | -7/Lower Caves | Attracted the attention of an 0b10 checkpoint 2911 | -7/Lower Caves | Discovered new exit (range 3) 2920 | -7/Lower Caves | Learned Factory garrison access intel 2924 | -7/Lower Caves | Learned 4 Factory zone layouts 2933 | -7/Lower Caves | Entered Zion 2975 | -7/Zion | Attacked by Zionites 3027 | -7/Zion | Discovered new exit (range 8) 3200 | -7/Zion | Spotted KL-MV2(B) 3200 | -7/Zion | Spotted B8-QCF(B) 3242 | -7/Zion | Core integrity fell below 50% 3267 | -7/Zion | Destroyed B8-QCF(B) 3295 | -7/Zion | Lost 11 parts (1p7n1u2w) 3524 | -7/Zion | Build established: Mutant 3621 | -7/Zion | Lost 3 parts (2n1w) 3726 | -7/Zion | Destroyed Imprinter 3773 | -7/Zion | Lost 5 parts (1p3n1w) 3791 | -7/Zion | Extracted access codes from Imprinter's data core 3933 | -7/Zion | Core integrity fell below 20% 3940 | -7/Zion | Self-destructed Last Messages --------------- 03794_ Acquired 5 matter. 03797_ Acquired Mak. Power Source. 03806_ Acquired 13 matter. 03812_ Acquired Corrupted Mak. Spear. 03816_ MBF6RCS7F3P|BS#2WBMD 03856_ Sneak attack on W6-16L(c). 03856_ W6-16L(c) destroyed. 03858_ Acquired 10 matter. 03876_ 41-LLD(z) destroyed. 03894_ Acquired KE Penetrator. 03909_ NX-1CS(z) pulls a Mak. Shrapnel Gun out of the Twisted Machinery. 03921_ Mak. Power Source destroyed. 03921_ Mak. Leg destroyed. 03926_ FR-ZDK(z) pulls a Mak. Shrapnel Gun out of the Twisted Machinery. 03929_ Adv. Assault Cannon destroyed. 03932_ NX-1CS(z) destroyed. 03938_ Titanium Leg destroyed. Map ----- +----------------------------------------------------+ | ?????????????????????????????????????????????????? | | ?????????????????????????????????????????????????? | | ?????????????????????????????????????????????????? | | ?????????????????????????????????????????????????? | | ?????????????????????????????????????????????????? | | ?????????????????????????????????????????????????? | | ?????????????????????????????????????????????????? | | ?????????????????????????????????????????????????? | | ?????????????????????????????????????????????????? | | ?????????????????????????????????????????????????? | | ?????????????????????????????????????????????????? | | ?????????????????????????????????????????????????? | | ?????????????????????????????????????????????????? | | ????????????????????????????######???????????????? | | ????????????????????????????# [ #???????????????? | | ????????????????????????????# #???????????????? | | ??????????????????????##????# #???????????????? | | ????????????????????###"#?#### #???????????????? | | ??????????????????"?#""""#"### #??"##""""#?????? | | ?????????????????##"#""""""## ##?"""""""""#???? | | ?????????????????""""""" ""##"" #?""" """##??? | | ?????????????????"" "#"""" ###"" """#??? | | ?????????????????" %"""" " # #""""" "#???? | | ?????????????????" """%* "" "" """" "##??? | | ????????????????" """ "" ""##" | | ???????????????? "##"@ """""" | | ???????????????????? """"z """" | | ??????????????????? """" """"" | | ???????????????????? """"""" "" | | ??????????????????? """"""#" """ | | ?????????????????? """" """ """ """ | | ????????????????? """"" """ !/*""" | | ????????????????"""""""""" """"" ==%"" " | | ?????????????????"""??""#"" """"""" """ * "" "" | | ????????????????????????"""""""""""""""" "" "" | | ???????????????????????? % "" "" | | ???????????????????????? "" | | ???????????????????????? | | ??????????????????????????""""""""" | | ??????????????????????????????""""""" " | | ???????????????????????????????""""""" | | ????????????????????????????????""##"" | | ????????????????????????????????#?#"#"" """ | | ??????????????????????????????????##""" ""#"" | | ??????????????????????????????????#"""" "#"""" | | ??????????????????????????????????##"" """"""" | | ???????????????????????????????????#"" """" | | ???????????????????????????????????#""" """"% | | ???????????????????????????????????##"" ""% | | ??????????????????????????????????#"#"" "" " | +----------------------------------------------------+ Best States ------------- Heat Dissipation 48 Energy Generation 19 Energy Capacity 315 Matter Stores 300 Matter Capacity 300 Sight Range 16 Terrain Scan Density 10 Armor Coverage 150 Evasion (%) 55 Melee Accuracy 6 Recoil Reduction 5 Salvage Targeting 4 Offensive Hacking 10 Item Schematics ----------------- Enh. Autogun | -8/Materials | Scanalyzed Robot Schematics ------------------ None Fabricated ------------ Nothing Alien Tech Used ----------------- None Achievements -------------- None Challenges ------------ None Game ------ Seed CoolingHardlightSource Manual? 0 Play Time 00:36:00 Cumulative 337.7 hours Start 2023.03.21 @ 22:32:07 End 2023.03.21 @ 23:36:48 Sessions 1 Manual Loads 0 Difficulty Rogue Special Mode None Game No. 392 Rogue 392 Adventurer 0 Explorer 0 Win Type - Total 11 Types 8/0/2/1/0/0/0/0/0 Lore% 79 Gallery% 88 Achievement% 78 Wizard Run 0 Options --------- ASCII 0 Keyboard 0 Movement Numpad Keybinds 0 Fullscreen 1 Font 18/Terminus Map View 76x50 Tactical HUD 1 Map Filters NONE Filters NONE Steam 1 RUN: aa0d412b-09b1-4f93-8fda-cdc9194b304a